bitfinex/quotes_BTCUSD_20250529
["timestamp","ask_amount","ask_price","bid_price","bid_amount"]
[1748558452050,1.84005751,106130.0,106120.0,0.02101323]
[1748558458339,1.84005751,106130.0,106120.0,0.00705505]
[1748558458542,1.84005751,106130.0,106120.0,0.01588225]
[1748558458952,1.84005751,106130.0,106120.0,0.02115595]
[1748558459482,1.84005751,106130.0,106120.0,0.00705519]
[1748558461187,2.33183649,106130.0,106120.0,0.00705519]
[1748558461387,2.67183649,106130.0,106120.0,0.00404]
[1748558462027,2.63783649,106130.0,106120.0,0.00204]
[1748558462267,2.64725871,106130.0,106120.0,0.00104]
[1748558462470,2.64725871,106130.0,106120.0,0.00204]
[1748558462672,2.64725871,106130.0,106120.0,4e-05]
[1748558463089,2.65125871,106130.0,106120.0,4e-05]
[1748558471558,3.13915871,106130.0,106120.0,4e-05]
[1748558494073,3.45168374,106130.0,106120.0,4e-05]
[1748558494285,3.57248496,106130.0,106120.0,4e-05]
[1748558494498,3.52997374,106130.0,106120.0,4e-05]
[1748558497376,1.48546408,106120.0,106110.0,0.00014]
[1748558497609,1.60801803,106120.0,106110.0,0.00014]
[1748558499095,1.70719803,106120.0,106110.0,0.00014]
[1748558499529,1.61101803,106120.0,106110.0,0.00014]
[1748558499756,1.61401803,106120.0,106110.0,0.00014]
[1748558499968,1.90181803,106120.0,106110.0,0.00014]
[1748558502799,1.95181803,106120.0,106110.0,0.00014]
[1748558504347,1.98011203,106120.0,106110.0,0.00014]
[1748558506228,2.38727203,106120.0,106110.0,0.00014]
[1748558508127,2.37727203,106120.0,106110.0,0.00014]
[1748558510779,0.19798227,106070.0,106060.0,0.45044164]
[1748558510980,0.19798227,106070.0,106060.0,0.45345807]
[1748558511195,0.19798227,106070.0,106060.0,0.44135917]
[1748558511630,0.19798227,106070.0,106060.0,0.43824231]
[1748558512285,0.19798227,106070.0,106060.0,0.43829127]
[1748558512503,0.19798227,106070.0,106060.0,0.44329127]
[1748558512715,0.19798227,106070.0,106060.0,0.44427484]
[1748558512933,0.19798227,106070.0,106060.0,0.44729131]
[1748558513185,0.19798227,106070.0,106060.0,0.44759554]
[1748558513813,0.19798227,106070.0,106060.0,0.47929554]
[1748558514885,0.15798227,106070.0,106060.0,0.47929554]
[1748558515300,0.16740982,106070.0,106060.0,0.47929554]
[1748558516786,0.16740982,106070.0,106060.0,0.49814554]
[1748558517223,0.16740982,106070.0,106060.0,0.49814555]
[1748558517916,0.16740982,106070.0,106060.0,0.40998555]
[1748558518992,0.16740982,106070.0,106060.0,0.40696907]
[1748558519221,0.16740982,106070.0,106060.0,0.40998555]
[1748558520702,0.16740982,106070.0,106060.0,0.71941481]
[1748558520908,0.16740982,106070.0,106060.0,0.71639833]
[1748558521113,0.16740982,106070.0,106060.0,0.72253573]
[1748558521322,0.16740982,106070.0,106060.0,0.81358968]
[1748558522379,0.16740982,106070.0,106060.0,0.81775389]
[1748558522589,0.12740982,106070.0,106060.0,0.81358968]
[1748558524705,0.12740982,106070.0,106060.0,0.81775602]
[1748558524912,0.12740982,106070.0,106060.0,0.81463283]
[1748558525320,0.12740982,106070.0,106060.0,1.21463283]
[1748558527815,0.12740982,106070.0,106060.0,0.90180357]
[1748558528024,0.12740982,106070.0,106060.0,0.81463283]
[1748558530266,0.08740982,106070.0,106060.0,0.81463283]
[1748558535899,0.08740982,106070.0,106060.0,0.18897431]
[1748558536134,0.08740982,106070.0,106060.0,0.81463283]
[1748558537967,0.04740982,106070.0,106060.0,0.81463283]
[1748558539073,0.04740982,106070.0,106060.0,1.21463283]
[1748558540038,0.04740982,106070.0,106060.0,0.03935545]
[1748558540039,0.45738377,106070.0,106060.0,0.03935545]
[1748558540268,0.45738377,106070.0,106060.0,0.03788322]
[1748558540499,0.45738377,106070.0,106060.0,0.02904896]
[1748558540947,0.45738377,106070.0,106060.0,0.02404896]
[1748558541169,0.45738377,106070.0,106060.0,0.02504896]
[1748558541389,0.45838377,106070.0,106060.0,0.02504896]
[1748558541606,0.45838377,106070.0,106060.0,0.02004896]
[1748558542067,0.45938377,106070.0,106060.0,0.02004896]
[1748558542542,0.35322982,106070.0,106060.0,0.02004896]
[1748558543215,0.19800094,106060.0,106050.0,0.23302308]
[1748558543478,0.19800094,106060.0,106040.0,0.45914205]
[1748558543479,0.19801961,106050.0,106040.0,0.45914205]
[1748558543707,0.19801961,106050.0,106040.0,0.46220817]
[1748558545019,0.19801961,106050.0,106040.0,0.46320817]
[1748558545234,0.19801961,106050.0,106040.0,0.46520817]
[1748558546144,0.19801961,106050.0,106040.0,0.15223405]
[1748558546366,0.19801961,106050.0,106040.0,0.46756551]
[1748558546579,0.19801961,106050.0,106040.0,0.46520817]
[1748558546999,0.19801961,106050.0,106040.0,0.15223405]
[1748558547208,0.19801961,106050.0,106040.0,0.15459139]
[1748558548797,0.20744885,106050.0,106040.0,1.08487019]
[1748558549006,0.20744885,106050.0,106040.0,0.89938056]
[1748558549007,0.19801961,106050.0,106040.0,0.89938056]
[1748558549229,0.19801961,106050.0,106040.0,1.09215284]
[1748558549441,0.19801961,106050.0,106040.0,1.0984648]
[1748558549897,0.19801961,106050.0,106040.0,0.90985673]
[1748558550584,0.19801961,106050.0,106040.0,0.90985633]
[1748558551350,0.19801961,106050.0,106040.0,0.90042593]
[1748558551563,0.19801961,106050.0,106040.0,1.089034]
[1748558553315,0.19801961,106050.0,106040.0,1.16366383]
[1748558553745,0.19801961,106050.0,106040.0,0.87750536]
[1748558553957,0.19801961,106050.0,106040.0,0.12718722]
[1748558554177,0.19801961,106050.0,106040.0,0.1240676]
[1748558556790,0.19801961,106050.0,106040.0,0.12406806]
[1748558557235,0.19801961,106050.0,106040.0,0.14291806]
[1748558557442,0.19801961,106050.0,106040.0,0.12406806]
[1748558557703,0.19801961,106050.0,106040.0,0.21214806]
[1748558559084,0.19801961,106050.0,106040.0,0.09109702]
[1748558559308,0.19801961,106050.0,106040.0,0.10354386]
[1748558559944,0.51096441,106050.0,106040.0,0.10354386]
[1748558561390,0.19801961,106050.0,106040.0,0.10354386]
[1748558564223,0.19801961,106050.0,106040.0,0.13740119]
[1748558567324,0.19801961,106050.0,106040.0,0.15625119]
[1748558567524,0.19801961,106050.0,106040.0,0.13740119]
[1748558568758,0.19801961,106050.0,106040.0,0.14052245]
[1748558569379,0.18859028,106050.0,106040.0,0.08808]
[1748558569801,0.18859028,106050.0,106040.0,0.09043733]
[1748558571260,0.18859028,106050.0,106040.0,0.10301613]
[1748558575388,0.19801961,106050.0,106040.0,1.0910942]
[1748558575611,0.19801961,106050.0,106040.0,1.08873687]
[1748558575818,0.19801961,106050.0,106040.0,1.098167]
[1748558577123,0.01885839,106050.0,106040.0,1.10759704]
[1748558577342,0.21687818,106050.0,106040.0,1.12118646]
[1748558577553,0.21687818,106050.0,106040.0,1.13061633]
[1748558577768,0.19800103,106060.0,106040.0,1.10232559]
[1748558577992,0.03798227,106070.0,106060.0,0.04534085]
[1748558578211,0.03798227,106070.0,106060.0,0.78636565]
[1748558579144,0.03798227,106070.0,106060.0,0.47342085]
[1748558579572,0.03798227,106070.0,106060.0,0.47858032]
[1748558581077,0.03798227,106070.0,106060.0,0.46338032]
[1748558581509,0.03798227,106070.0,106060.0,0.46639657]
[1748558582404,0.03798227,106070.0,106060.0,0.4622371]
[1748558582618,0.03798227,106070.0,106060.0,0.46639657]
[1748558584230,0.03798227,106070.0,106060.0,0.48179657]
[1748558584461,0.03798227,106070.0,106060.0,0.48179654]
[1748558585855,0.03798227,106070.0,106060.0,0.47763707]
[1748558587014,0.03798227,106070.0,106060.0,0.46223707]
[1748558588549,0.03798227,106070.0,106060.0,0.44663707]
[1748558589923,0.03798227,106070.0,106060.0,0.10663707]
[1748558590147,0.03798227,106070.0,106060.0,0.1089939]
[1748558591666,0.03798227,106070.0,106060.0,0.20004785]
[1748558591883,0.03798227,106070.0,106060.0,0.19769102]
[1748558593204,0.03798227,106070.0,106060.0,0.19769104]
[1748558602914,0.03798227,106070.0,106060.0,0.20185051]
[1748558606416,0.03798227,106070.0,106060.0,0.20185053]
[1748558610724,0.03798227,106070.0,106060.0,0.19883427]
[1748558610926,0.03798227,106070.0,106060.0,0.20185048]
[1748558612039,0.03798227,106070.0,106060.0,0.51464025]
[1748558612910,0.05398227,106070.0,106060.0,0.51464025]
[1748558615597,0.07038227,106070.0,106060.0,0.51464025]
[1748558620782,0.07038227,106070.0,106060.0,0.57991312]
[1748558620990,0.07038227,106070.0,106060.0,0.10260025]
[1748558621652,0.07038227,106070.0,106060.0,0.09097621]
[1748558628281,0.07038227,106070.0,106060.0,0.08796]
[1748558628501,0.07038227,106070.0,106060.0,0.0909762]
[1748558628952,0.07038227,106070.0,106060.0,0.0030162]
[1748558629186,0.07273968,106070.0,106060.0,0.0030162]
[1748558630287,0.36013968,106070.0,106060.0,0.0030162]
[1748558630514,0.35778227,106070.0,106060.0,0.0030162]
[1748558630958,0.35778227,106070.0,106060.0,0.00614142]
[1748558632748,0.22940094,106060.0,106050.0,0.0333932]
[1748558632955,0.22940094,106060.0,106050.0,0.0364098]
[1748558633169,0.54231032,106060.0,106050.0,0.06834659]
[1748558634070,0.54231032,106060.0,106050.0,0.07034659]
[1748558634982,0.54231032,106060.0,106050.0,0.07234659]
[1748558635611,0.50231032,106060.0,106050.0,0.01013871]
[1748558636028,0.51173876,106060.0,106050.0,0.01013871]
[1748558636233,0.51173876,106060.0,106050.0,0.01249582]
[1748558636447,0.19882938,106060.0,106050.0,0.01249582]
[1748558636646,0.19882938,106060.0,106050.0,0.01013871]
[1748558636858,0.19882938,106060.0,106050.0,0.004]
[1748558637084,0.19882938,106060.0,106050.0,0.01013848]
[1748558637290,0.51173876,106060.0,106050.0,0.01013848]
[1748558643276,0.47173876,106060.0,106050.0,0.01013848]
[1748558644185,0.47173876,106060.0,106050.0,0.004]
[1748558644392,0.47173876,106060.0,106050.0,0.01013778]
[1748558644619,0.15882938,106060.0,106050.0,0.09809778]
[1748558644791,0.47173876,106060.0,106050.0,0.09809778]
[1748558648649,0.47173876,106060.0,106050.0,0.09196]
[1748558648858,0.47173876,106060.0,106050.0,0.09809791]
[1748558651198,0.43173876,106060.0,106050.0,0.09809791]
[1748558653132,0.43173876,106060.0,106050.0,0.0980985]
[1748558657394,0.43173876,106060.0,106050.0,0.09196]
[1748558657609,0.43173876,106060.0,106050.0,0.01014014]
[1748558657822,0.43173876,106060.0,106050.0,0.01430301]
[1748558658704,0.43173876,106060.0,106050.0,0.01117943]
[1748558658957,0.39173876,106060.0,106050.0,0.01430504]
[1748558659617,0.39173876,106060.0,106050.0,0.01117943]
[1748558660053,0.39173876,106060.0,106050.0,0.01430536]
[1748558660270,0.39173876,106060.0,106050.0,0.01117943]
[1748558664589,0.89173876,106060.0,106050.0,0.01117943]
[1748558666514,0.85173876,106060.0,106050.0,0.01117943]
[1748558666955,1.04031126,106060.0,106050.0,0.01117943]
[1748558668534,1.02641032,106060.0,106050.0,0.01117943]
[1748558668797,1.02641032,106060.0,106050.0,0.01014278]
[1748558669013,1.02641032,106060.0,106050.0,0.01430566]
[1748558669234,1.02641032,106060.0,106050.0,0.01117943]
[1748558669692,1.04211032,106060.0,106050.0,0.01117943]
[1748558670430,1.04211032,106060.0,106050.0,0.01430543]
[1748558673125,1.04211032,106060.0,106050.0,0.01117943]
[1748558674237,1.00211032,106060.0,106050.0,0.01117943]
[1748558674449,1.00211032,106060.0,106050.0,0.0143054]
[1748558674450,1.01153876,106060.0,106050.0,0.0143054]
[1748558675095,0.69800094,106060.0,106050.0,0.01666253]
[1748558675307,0.69800094,106060.0,106050.0,0.01666261]
[1748558675964,0.69800094,106060.0,106050.0,0.01430548]
[1748558676674,0.69800094,106060.0,106050.0,0.01117945]
[1748558676884,1.02681032,106060.0,106050.0,0.01117945]
[1748558679582,1.02681032,106060.0,106050.0,0.01117944]
[1748558682050,0.98681032,106060.0,106050.0,0.0143054]
[1748558683996,0.98681032,106060.0,106050.0,0.01430546]
[1748558684432,0.98681032,106060.0,106050.0,0.01117944]
[1748558686037,0.67390094,106060.0,106050.0,0.01117944]
[1748558688425,0.67390094,106060.0,106050.0,0.02701287]
[1748558688633,0.67390094,106060.0,106050.0,0.01117944]
[1748558689779,0.67390094,106060.0,106050.0,0.01430543]
[1748558689780,0.63390094,106060.0,106050.0,0.01430543]
[1748558691008,0.63390094,106060.0,106050.0,0.01430551]
[1748558691210,0.94681032,106060.0,106050.0,0.01430551]
[1748558691870,0.63390094,106060.0,106050.0,0.01430551]
[1748558692080,0.63390094,106060.0,106050.0,0.01117944]
[1748558697387,0.59390094,106060.0,106050.0,0.01117944]
[1748558697607,0.59390094,106060.0,106050.0,0.01430561]
[1748558699515,0.59390094,106060.0,106050.0,0.01117943]
[1748558700862,0.61040094,106060.0,106050.0,0.01117943]
[1748558701131,0.61040094,106060.0,106050.0,0.00816287]
[1748558701377,0.61040094,106060.0,106050.0,0.01117941]
[1748558702303,0.92331032,106060.0,106050.0,0.01117941]
[1748558704737,0.59390094,106060.0,106050.0,0.01117946]
[1748558705168,0.55390094,106060.0,106050.0,0.01117946]
[1748558705376,0.55390094,106060.0,106050.0,0.01430567]
[1748558705593,0.55390094,106060.0,106050.0,0.01117946]
[1748558706021,0.55390094,106060.0,106050.0,0.01430578]
[1748558707487,0.55390094,106060.0,106050.0,0.01117946]
[1748558707711,0.88281032,106060.0,106050.0,0.01430572]
[1748558707927,0.88281032,106060.0,106050.0,0.01014285]
[1748558708844,0.88281032,106060.0,106050.0,0.01014259]
[1748558709275,0.56990094,106060.0,106050.0,0.01014259]
[1748558709962,0.88281032,106060.0,106050.0,0.01014259]
[1748558711029,0.55390094,106060.0,106050.0,0.01014259]
[1748558712478,0.55390094,106060.0,106050.0,0.01430546]
[1748558712683,0.55390094,106060.0,106050.0,0.01014259]
[1748558712870,0.51390094,106060.0,106050.0,0.01014259]
[1748558713096,0.51390094,106060.0,106050.0,0.004]
[1748558713303,0.51390094,106060.0,106050.0,0.01014204]
[1748558716438,0.52890094,106060.0,106050.0,0.01014204]
[1748558717683,0.52890094,106060.0,106050.0,0.010142]
[1748558720625,0.48890094,106060.0,106050.0,0.010142]
[1748558721310,0.47390094,106060.0,106050.0,0.010142]
[1748558721586,0.76260094,106060.0,106050.0,0.010142]
[1748558721803,0.47440094,106060.0,106050.0,0.010142]
[1748558722034,0.80241032,106060.0,106050.0,0.01014198]
[1748558723335,1.09057032,106060.0,106050.0,0.01014198]
[1748558723791,0.77766094,106060.0,106050.0,0.01014198]
[1748558724011,1.09057032,106060.0,106050.0,0.01014198]
[1748558725139,1.09065032,106060.0,106050.0,0.01014198]
[1748558727009,0.77774094,106060.0,106050.0,0.01014198]
[1748558728262,0.73774094,106060.0,106050.0,0.01014198]
[1748558730646,0.73774094,106060.0,106050.0,0.00701665]
[1748558730864,0.73774094,106060.0,106050.0,0.01014201]
[1748558734041,1.05065032,106060.0,106050.0,0.01014201]
[1748558735156,1.05065032,106060.0,106050.0,0.0101421]
[1748558736073,1.01065032,106060.0,106050.0,0.0101421]
[1748558740478,1.3235597,106060.0,106050.0,0.0101421]
[1748558740694,1.41461365,106060.0,106050.0,0.00701673]
[1748558743773,1.37461365,106060.0,106050.0,0.00701673]
[1748558743992,1.37461365,106060.0,106050.0,0.00501673]
[1748558744874,1.37461365,106060.0,106050.0,0.00301673]
[1748558746671,0.22266824,106040.0,106030.0,0.36499254]
[1748558746895,0.82321762,106040.0,106030.0,0.36514015]
[1748558747752,0.83901762,106040.0,106030.0,0.36514015]
[1748558747966,0.82321762,106040.0,106030.0,0.00929015]
[1748558748193,0.83901762,106040.0,106030.0,0.01228576]
[1748558748406,0.83901762,106040.0,106030.0,0.0091648]
[1748558750441,0.83901762,106040.0,106030.0,0.0061648]
[1748558750880,0.83901762,106040.0,106030.0,0.0081648]
[1748558751525,0.79901762,106040.0,106030.0,0.0051648]
[1748558751739,0.79901762,106040.0,106030.0,0.0071648]
[1748558751949,0.81787779,106040.0,106030.0,0.0071648]
[1748558752599,0.81787779,106040.0,106030.0,0.00716491]
[1748558754739,0.50496841,106040.0,106030.0,0.00716491]
[1748558754957,0.81779779,106040.0,106030.0,0.00716491]
[1748558755433,0.50488841,106040.0,106030.0,0.00716491]
[1748558755940,0.81779779,106040.0,106030.0,0.00716491]
[1748558759818,0.77779779,106040.0,106030.0,0.00414755]
[1748558759997,0.49023779,106040.0,106030.0,0.00414755]
[1748558760201,0.77771779,106040.0,106030.0,0.00414755]
[1748558760454,0.77771779,106040.0,106030.0,0.00716491]
[1748558760669,0.76191779,106040.0,106030.0,0.00716491]
[1748558760898,0.77721779,106040.0,106030.0,0.00716491]
[1748558761251,0.77721779,106040.0,106030.0,0.00414755]
[1748558761470,0.76191779,106040.0,106030.0,0.00414755]
[1748558762205,0.76191779,106040.0,106030.0,0.00716488]
[1748558762657,0.47443779,106040.0,106030.0,0.00716488]
[1748558762866,0.76187779,106040.0,106030.0,0.00716488]
[1748558763354,0.77747779,106040.0,106030.0,0.00716488]
[1748558764286,0.77747779,106040.0,106030.0,0.00414755]
[1748558764443,0.76187779,106040.0,106030.0,0.00414755]
[1748558765264,0.76187779,106040.0,106030.0,0.00716492]
[1748558765518,0.77737779,106040.0,106030.0,0.00716492]
[1748558766743,1.09028717,106040.0,106030.0,0.00716492]
[1748558767413,1.05028717,106040.0,106030.0,0.00716499]
[1748558768167,1.14134112,106040.0,106030.0,0.00716499]
[1748558768365,1.5419705,106040.0,106030.0,0.00716499]
[1748558768604,1.5419705,106040.0,106030.0,0.00414755]
[1748558768605,1.9102805,106040.0,106030.0,0.00414755]
[1748558769591,1.9102805,106040.0,106030.0,0.00214755]
[1748558770366,1.59737112,106040.0,106030.0,0.00014755]
[1748558774141,1.9102805,106040.0,106030.0,0.00014755]
[1748558774556,1.5351205,106040.0,106030.0,0.00014755]
[1748558774790,1.9103605,106040.0,106030.0,0.00014755]
[1748558775417,0.59739236,106040.0,106030.0,0.00014755]
[1748558775577,1.59845112,106040.0,106030.0,0.00014755]
[1748558775779,1.59745112,106040.0,106030.0,0.00014755]
[1748558776192,1.9143605,106040.0,106030.0,0.00014755]
[1748558776599,1.9183605,106040.0,106030.0,0.00014755]
[1748558779083,1.5431205,106040.0,106030.0,0.00014755]
[1748558779293,1.9184005,106040.0,106030.0,0.00014755]
[1748558780324,1.93294135,106040.0,106030.0,0.00014755]
[1748558780537,2.18463257,106040.0,106030.0,0.00014755]
[1748558780749,2.09212135,106040.0,106030.0,0.00014755]
[1748558782676,2.49952135,106040.0,106030.0,0.00014755]
[1748558783090,1.56079321,106040.0,106030.0,0.00014755]
[1748558783504,1.22339321,106040.0,106030.0,0.00014755]
[1748558783706,1.56079321,106040.0,106030.0,0.00014755]
[1748558785577,1.17551321,106040.0,106030.0,0.00014755]
[1748558785784,1.40165321,106040.0,106030.0,0.00014755]
[1748558786606,1.07633321,106040.0,106030.0,0.00014755]
[1748558786811,1.45173321,106040.0,106030.0,0.00014755]
[1748558787625,1.40173321,106040.0,106030.0,0.00014755]
[1748558787826,1.45173321,106040.0,106030.0,0.00014755]
[1748558789245,1.07633321,106040.0,106030.0,0.00014755]
[1748558789451,1.45165321,106040.0,106030.0,0.00014755]
[1748558791099,1.40165321,106040.0,106030.0,0.00014755]
[1748558791345,1.38711236,106040.0,106030.0,0.00014755]
[1748558811497,1.48635236,106040.0,106030.0,0.00014755]
[1748558811785,1.38711236,106040.0,106030.0,0.00014755]
[1748558813423,1.01179236,106040.0,106030.0,0.00014755]
[1748558813640,1.38711236,106040.0,106030.0,0.00014755]
[1748558817685,1.41459272,106040.0,106030.0,0.00014755]
[1748558818293,1.12715272,106040.0,106030.0,0.00014755]
[1748558818499,1.41459272,106040.0,106030.0,0.00014755]
[1748558821020,1.38711236,106040.0,106030.0,0.00014755]
[1748558821423,1.48635236,106040.0,106030.0,0.00014755]
[1748558821624,1.38711236,106040.0,106030.0,0.00014755]
[1748558822580,1.41456759,106040.0,106030.0,0.00014755]
[1748558825916,1.38711236,106040.0,106030.0,0.00014755]
[1748558826553,1.41441924,106040.0,106030.0,0.00014755]
[1748558826882,1.38610924,106040.0,106030.0,0.00014755]
[1748558827775,0.97870924,106040.0,106030.0,0.00014755]
[1748558833070,0.99325009,106040.0,106030.0,0.00014755]
[1748558834146,0.57065697,106030.0,106020.0,0.0001]
[1748558834379,0.66171092,106030.0,106020.0,0.00014917]
[1748558835288,0.66471092,106030.0,106020.0,0.00014917]
[1748558835708,0.66671092,106030.0,106020.0,0.00014917]
[1748558837637,0.7238649,106030.0,106020.0,0.00014917]
[1748558841374,1.16915177,106030.0,106020.0,0.00014917]
[1748558841813,1.26839177,106030.0,106020.0,0.00014917]
[1748558842020,1.67587177,106030.0,106020.0,0.00014917]
[1748558846250,0.20752695,106010.0,106000.0,0.06775]
[1748558846465,1.0292609,106010.0,106000.0,0.05179916]
[1748558846893,1.0455609,106010.0,106000.0,0.05179916]
[1748558847117,1.06412439,106010.0,106000.0,0.05179916]
[1748558847760,1.04782439,106010.0,106000.0,0.05179916]
[1748558848844,1.06372439,106010.0,106000.0,0.05179916]
[1748558849271,1.18750524,106010.0,106000.0,0.05179916]
[1748558849946,1.08326524,106010.0,106000.0,0.05179916]
[1748558850166,1.08126524,106010.0,106000.0,0.05179916]
[1748558850381,1.08226524,106010.0,106000.0,0.05179916]
[1748558850616,1.08626524,106010.0,106000.0,0.05179916]
[1748558853116,1.57416524,106010.0,106000.0,0.05179916]
[1748558854425,1.24092439,106010.0,106000.0,0.08219916]
[1748558854629,1.5097609,106010.0,106000.0,0.08219916]
[1748558855172,1.1344809,106010.0,106000.0,0.08219916]
[1748558855384,1.5097609,106010.0,106000.0,0.08219916]
[1748558859156,1.1344809,106010.0,106000.0,0.08219916]
[1748558859357,1.5097609,106010.0,106000.0,0.08219916]
[1748558864503,0.7944809,106010.0,106000.0,0.08219916]
[1748558864711,0.70342695,106010.0,106000.0,0.08521776]
[1748558865715,0.69942695,106010.0,106000.0,0.08521776]
[1748558865931,0.69542695,106010.0,106000.0,0.08521776]
[1748558866130,0.69742695,106010.0,106000.0,0.08521776]
[1748558867421,0.69742695,106010.0,106000.0,0.10448719]
[1748558868090,0.20952695,106010.0,106000.0,0.10448719]
[1748558870658,0.20952695,106010.0,106000.0,0.10448711]
[1748558872421,0.70952695,106010.0,106000.0,0.10448711]
[1748558875289,0.70952695,106010.0,106000.0,0.1044871]
[1748558886583,0.70952695,106010.0,106000.0,0.10448689]
[1748558891081,0.70952695,106010.0,106000.0,0.10448688]
[1748558893375,0.70952695,106010.0,106000.0,0.10760729]
[1748558895137,0.70952695,106010.0,106000.0,0.10761193]
[1748558896350,0.70952695,106010.0,106000.0,0.1321043]
[1748558899380,0.70952695,106010.0,106000.0,0.46401174]
[1748558899616,0.70952695,106010.0,106000.0,0.4608868]
[1748558900944,0.70952695,106010.0,106000.0,0.8008868]
[1748558901382,0.70952695,106010.0,106000.0,0.8009268]
[1748558903934,0.51143236,106010.0,106000.0,1.50916837]
[1748558904181,0.53029751,106010.0,106000.0,1.57435274]
[1748558904414,0.52086489,106010.0,106000.0,1.57435274]
[1748558904643,0.49823372,106010.0,106000.0,1.57435274]
[1748558904860,0.50766652,106010.0,106000.0,1.57435274]
[1748558905074,0.46766652,106010.0,106000.0,1.57735274]
[1748558905513,0.46766652,106010.0,106000.0,1.58035274]
[1748558905958,0.45823372,106010.0,106000.0,1.58035274]
[1748558906184,0.45823372,106010.0,106000.0,1.26699318]
[1748558906623,0.45823372,106010.0,106000.0,1.20180881]
[1748558906624,0.67519392,106010.0,106000.0,1.20180881]
[1748558906855,0.46766643,106010.0,106000.0,1.20180881]
[1748558907085,0.47709932,106010.0,106000.0,1.20180881]
[1748558907509,0.47709932,106010.0,106000.0,1.26698792]
[1748558907734,0.47709932,106010.0,106000.0,1.20180798]
[1748558908475,0.47709932,106010.0,106000.0,1.20596395]
[1748558908926,0.47709932,106010.0,106000.0,1.23426695]
[1748558909333,0.47709932,106010.0,106000.0,1.29944621]
[1748558910363,0.46766643,106010.0,106000.0,1.29944621]
[1748558910568,0.45823372,106010.0,106000.0,1.29944621]
[1748558910773,0.46766634,106010.0,106000.0,1.29944621]
[1748558912060,0.47709923,106010.0,106000.0,1.23124947]
[1748558912275,0.46766634,106010.0,106000.0,1.23426696]
[1748558912489,0.47709923,106010.0,106000.0,1.59654171]
[1748558912737,0.46766634,106010.0,106000.0,1.53136696]
[1748558912954,0.43709914,106010.0,106000.0,1.53136696]
[1748558913592,0.42766634,106010.0,106000.0,1.53136696]
[1748558913794,0.43709905,106010.0,106000.0,1.53136696]
[1748558914208,0.42766634,106010.0,106000.0,1.53136696]
[1748558914415,0.41823372,106010.0,106000.0,1.53136696]
[1748558914933,0.43709932,106010.0,106000.0,1.53136696]
[1748558915173,0.41823372,106010.0,106000.0,1.59653496]
[1748558915389,0.42766643,106010.0,106000.0,1.59237899]
[1748558916230,0.41351363,106010.0,106000.0,1.59237899]
[1748558916464,0.41351363,106010.0,106000.0,1.59236876]
[1748558917710,0.42294643,106010.0,106000.0,1.59236876]
[1748558918339,0.42188972,106010.0,106000.0,1.59236876]
[1748558919458,0.42188972,106010.0,106000.0,1.27931406]
[1748558919667,0.43132261,106010.0,106000.0,1.88520876]
[1748558919869,0.42188972,106010.0,106000.0,1.88520876]
[1748558920541,0.39132261,106010.0,106000.0,1.88520876]
[1748558920747,0.39132261,106010.0,106000.0,1.82420492]
[1748558920953,0.39132261,106010.0,106000.0,1.53136492]
[1748558920954,0.38188972,106010.0,106000.0,1.53136492]
[1748558921159,0.38188972,106010.0,106000.0,1.82420492]
[1748558921387,0.38188945,106010.0,106000.0,1.82420492]
[1748558921602,0.38188945,106010.0,106000.0,1.82005093]
[1748558921814,0.39132216,106010.0,106000.0,1.82005093]
[1748558922130,0.37245683,106010.0,106000.0,1.82005093]
[1748558922344,0.33474374,106010.0,106000.0,2.23156566]
[1748558922548,0.34417645,106010.0,106000.0,2.23156566]
[1748558922759,0.34417636,106010.0,106000.0,2.23156566]
[1748558922968,0.32393636,106010.0,106000.0,2.23156612]
[1748558923176,0.33336925,106010.0,106000.0,2.23156612]
[1748558923595,0.33336925,106010.0,106000.0,2.22741093]
[1748558924860,0.32393636,106010.0,106000.0,2.22741093]
[1748558925070,0.33336916,106010.0,106000.0,2.22741093]
[1748558925294,0.33336916,106010.0,106000.0,2.22741094]
[1748558927209,0.25792542,106010.0,106000.0,3.41637794]
[1748558927458,0.24715813,106010.0,106000.0,3.41637794]
[1748558927704,0.23566813,106010.0,106000.0,3.41637794]
[1748558927946,0.18149813,106010.0,106000.0,3.41637794]
[1748558928166,0.18149813,106010.0,106000.0,3.72939672]
[1748558928167,0.16537813,106010.0,106000.0,3.72939672]
[1748558928384,0.12537813,106010.0,106000.0,3.72939672]
[1748558928805,0.08783299,106010.0,106000.0,3.72939672]
[1748558929041,0.06262543,106010.0,106000.0,3.72939672]
[1748558929254,0.05009272,106010.0,106000.0,3.72939672]
[1748558929476,0.05009272,106010.0,106000.0,3.72637928]
[1748558929703,0.19809186,106020.0,106010.0,0.57872713]
[1748558929915,0.19809186,106020.0,106010.0,0.68639295]
[1748558930124,0.19809186,106020.0,106010.0,0.99942969]
[1748558930803,0.19809186,106020.0,106010.0,1.00886222]
[1748558931023,0.19809186,106020.0,106010.0,1.01086222]
[1748558931674,0.19809186,106020.0,106010.0,1.01286222]
[1748558931897,0.21693947,106020.0,106010.0,1.02229466]
[1748558932114,0.21693947,106020.0,106010.0,1.11321466]
[1748558932535,0.22637165,106020.0,106010.0,1.09434969]
[1748558932756,0.22637165,106020.0,106010.0,1.40738643]
[1748558933643,0.22637165,106020.0,106010.0,1.41685896]
[1748558933862,0.22637165,106020.0,106010.0,1.41384156]
[1748558934074,0.22637165,106020.0,106010.0,1.41685894]
[1748558934793,0.22637165,106020.0,106010.0,1.43572894]
[1748558935010,0.22637165,106020.0,106010.0,1.41685894]
[1748558935441,0.22637165,106020.0,106010.0,1.41269703]
[1748558936103,0.18637165,106020.0,106010.0,1.40146232]
[1748558936324,0.01886409,106020.0,106010.0,1.41089468]
[1748558936541,0.21693947,106020.0,106010.0,1.41776232]
[1748558936754,0.02829582,106020.0,106010.0,1.41776232]
[1748558936975,0.10346824,106040.0,106030.0,0.01454085]
[1748558937191,0.08746824,106040.0,106030.0,1.03375307]
[1748558937429,0.08746824,106040.0,106030.0,1.65982655]
[1748558937674,0.08746824,106040.0,106030.0,1.69252655]
[1748558937883,0.18860807,106040.0,106030.0,1.71138815]
[1748558938117,0.20360652,106050.0,106040.0,0.35454085]
[1748558938379,0.20360652,106050.0,106040.0,0.36067826]
[1748558938585,0.20360652,106050.0,106040.0,0.67356533]
[1748558939052,0.20360652,106050.0,106040.0,0.76461928]
[1748558939270,0.20460652,106050.0,106040.0,0.76461928]
[1748558939493,0.20460652,106050.0,106040.0,0.76466844]
[1748558940354,0.20560652,106050.0,106040.0,0.76466844]
[1748558940995,0.20560652,106050.0,106040.0,1.07755551]
[1748558941207,0.20560652,106050.0,106040.0,0.76466844]
[1748558941418,0.20560652,106050.0,106040.0,1.07755551]
[1748558941659,0.19060652,106050.0,106040.0,1.07755551]
[1748558942110,0.20946509,106050.0,106040.0,1.30763778]
[1748558942325,0.20946509,106050.0,106040.0,1.72438782]
[1748558942538,0.21887774,106050.0,106040.0,1.74324764]
[1748558942754,0.21887774,106050.0,106040.0,1.74323891]
[1748558942755,0.22830725,106050.0,106040.0,1.74323891]
[1748558943190,0.22730725,106050.0,106040.0,1.74323891]
[1748558943399,0.22730725,106050.0,106040.0,1.74423891]
[1748558943659,0.22630725,106050.0,106040.0,1.74423891]
[1748558943863,0.18630725,106050.0,106040.0,1.74423891]